fUSD/lending_fUSD_20240708
["ID","MTS","AMOUNT","RATE_DAILY","PERIOD"]
[331483553,1720438124819,-500.0,0.00050958,120]
[331483554,1720438124861,-710.2,0.00050958,120]
[331483555,1720438124904,-500.0,0.00050958,120]
[331483556,1720438124945,-500.0,0.00050958,120]
[331483557,1720438124987,-578.06,0.00050958,120]
[331483558,1720438125029,-500.0,0.00050958,120]
[331483559,1720438125069,-500.0,0.00050958,120]
[331483560,1720438125110,-929.58,0.00050958,120]
[331483561,1720438125150,-500.0,0.00050958,120]
[331483562,1720438125189,-500.0,0.00050958,120]
[331483563,1720438125229,-737.43,0.00050958,120]
[331483564,1720438125276,-1373.64,0.00050958,120]
[331483565,1720438125322,-539.13,0.00050958,120]
[331483566,1720438125365,-628.14,0.00050958,120]
[331483567,1720438125409,-500.0,0.00050958,120]
[331483568,1720438125457,-2378.31,0.00050958,120]
[331483569,1720438125500,-500.0,0.00050958,120]
[331483570,1720438125542,-618.5,0.00050958,120]
[331483571,1720438125582,-558.96027754,0.00050958,120]
[331483572,1720438125808,-500.0,0.00050958,120]
[331483573,1720438125851,-604.87,0.00050958,120]
[331483574,1720438125895,-500.0,0.00050958,120]
[331483575,1720438125937,-500.0,0.00050958,120]
[331483576,1720438125981,-500.0,0.00050958,120]
[331483577,1720438126021,-500.0,0.00050958,120]
[331483578,1720438126060,-500.0,0.00050958,120]
[331483579,1720438126102,-500.0,0.00050958,120]
[331483580,1720438126142,-575.43,0.00050958,120]
[331483581,1720438126185,-3249.91,0.00050958,120]
[331483582,1720438126227,-2121.94,0.00050958,120]
[331483583,1720438126275,-500.0,0.00050958,120]
[331483584,1720438126317,-1484.69,0.00050958,120]
[331483585,1720438126362,-1415.03,0.00050958,120]
[331483586,1720438126405,-500.0,0.00050958,120]
[331483587,1720438126450,-500.0,0.00050958,120]
[331483588,1720438126494,-500.0,0.00050958,120]
[331483589,1720438126537,-500.0,0.00050958,120]
[331483590,1720438126580,-606.58,0.00050958,120]
[331483591,1720438126623,-500.0,0.00050958,120]
[331483592,1720438126668,-500.0,0.00050958,120]
[331483593,1720438126711,-500.0,0.00050958,120]
[331483594,1720438126756,-500.0,0.00050958,120]
[331483595,1720438126799,-1775.66,0.00050958,120]
[331483596,1720438126843,-2617.01,0.00050958,120]
[331483597,1720438126887,-500.0,0.00050958,120]
[331483598,1720438126930,-500.0,0.00050958,120]
[331483599,1720438126972,-500.0,0.00050958,120]
[331483600,1720438127015,-817.76,0.00050958,120]
[331483601,1720438127056,-500.0,0.00050958,120]
[331483602,1720438127097,-500.0,0.00050958,120]
[331483603,1720438127140,-500.0,0.00050958,120]
[331483604,1720438127184,-500.0,0.00050958,120]
[331483605,1720438127225,-500.0,0.00050958,120]
[331483606,1720438127268,-500.0,0.00050958,120]
[331483607,1720438127311,-500.0,0.00050958,120]
[331483608,1720438127352,-500.0,0.00050958,120]
[331483609,1720438127393,-500.0,0.00050958,120]
[331483610,1720438127436,-670.77,0.00050958,120]
[331483611,1720438127477,-4545.65,0.00050958,120]
[331483612,1720438127519,-500.0,0.00050958,120]
[331483613,1720438127562,-1428.1,0.00050958,120]
[331483614,1720438127603,-5370.77,0.00050958,120]
[331483615,1720438127645,-500.0,0.00050958,120]
[331483616,1720438127691,-500.0,0.00050958,120]
[331483617,1720438127737,-1665.53,0.00050958,120]
[331483618,1720438127783,-1529.14,0.00050958,120]
[331483619,1720438127830,-500.0,0.00050958,120]
[331483620,1720438127875,-1851.79,0.00050958,120]
[331483621,1720438127920,-705.82,0.00050958,120]
[331483622,1720438127967,-810.35,0.00050958,120]
[331483623,1720438128010,-612.18,0.00050958,120]
[331483624,1720438128052,-592.08,0.00050958,120]
[331483625,1720438128094,-500.0,0.00050958,120]
[331483626,1720438128135,-638.54,0.00050958,120]
[331483627,1720438128178,-2810.55,0.00050958,120]
[331483628,1720438128221,-500.0,0.00050958,120]
[331483629,1720438128264,-500.0,0.00050958,120]
[331483630,1720438128307,-500.0,0.00050958,120]
[331483631,1720438128352,-4159.47,0.00050958,120]
[331483632,1720438128393,-1771.73,0.00050958,120]
[331483633,1720438128437,-500.0,0.00050958,120]
[331483634,1720438128484,-500.0,0.00050958,120]
[331483635,1720438128530,-500.0,0.00050958,120]
[331483636,1720438128575,-500.0,0.00050958,120]
[331483637,1720438128622,-500.0,0.00050958,120]
[331483638,1720438128666,-500.0,0.00050958,120]
[331483639,1720438128710,-599.01,0.00050958,120]
[331483640,1720438128755,-786.1,0.00050958,120]
[331483641,1720438128799,-783.57,0.00050958,120]
[331483642,1720438128842,-500.0,0.00050958,120]
[331483643,1720438128887,-500.0,0.00050958,120]
[331483644,1720438128931,-1980.59,0.00050958,120]
[331483645,1720438128977,-4167.38,0.00050958,120]
[331483646,1720438129021,-500.0,0.00050958,120]
[331483647,1720438129066,-500.0,0.00050958,120]
[331483648,1720438129110,-500.0,0.00050958,120]
[331483649,1720438129153,-500.0,0.00050958,120]
[331483650,1720438129198,-588.73,0.00050958,120]
[331483651,1720438129241,-2910.97,0.00050958,120]
[331483652,1720438129289,-500.0,0.00050958,120]
[331483653,1720438129333,-500.0,0.00050958,120]
[331483654,1720438129376,-527.34,0.00050958,120]
[331483655,1720438129422,-1978.56,0.00050958,120]
[331483656,1720438129465,-500.0,0.00050958,120]
[331483657,1720438129510,-2309.55,0.00050958,120]
[331483658,1720438129552,-500.0,0.00050958,120]
[331483659,1720438129592,-500.0,0.00050958,120]
[331483660,1720438129635,-554.5985671,0.00050958,120]
[331483661,1720438129678,-500.0,0.00050958,120]
[331483662,1720438129719,-500.0,0.00050958,120]
[331483663,1720438129762,-500.0,0.00050958,120]
[331483664,1720438129806,-5737.69,0.00050958,120]
[331483665,1720438129846,-500.0,0.00050958,120]
[331483666,1720438129888,-4114.02,0.00050958,120]
[331483667,1720438129931,-500.0,0.00050958,120]
[331483668,1720438129976,-500.0,0.00050958,120]
[331483669,1720438130021,-500.0,0.00050958,120]
[331483670,1720438130064,-500.0,0.00050958,120]
[331483671,1720438130107,-649.04,0.00050958,120]
[331483672,1720438130149,-500.0,0.00050958,120]
[331483673,1720438130191,-1257.97,0.00050958,120]
[331483674,1720438130234,-4945.17,0.00050958,120]
[331483675,1720438130279,-3615.09,0.00050958,120]
[331483676,1720438130506,-500.0,0.00050958,120]
[331483677,1720438130549,-2750.23,0.00050958,120]
[331483678,1720438130591,-150.0,0.00050958,120]
[331483679,1720438130634,-1195.11,0.00050958,120]
[331483680,1720438130678,-500.0,0.00050958,120]
[331483681,1720438130722,-500.0,0.00050958,120]
[331483682,1720438130764,-2303.83,0.00050958,120]
[331483683,1720438130804,-500.0,0.00050958,120]
[331483684,1720438130845,-1030.01,0.00050958,120]
[331483685,1720438130886,-500.0,0.00050958,120]
[331483686,1720438130928,-500.0,0.00050958,120]
[331483687,1720438130969,-1108.77,0.00050958,120]
[331483688,1720438131014,-1037.41,0.00050958,120]
[331483689,1720438131053,-500.0,0.00050958,120]
[331483690,1720438131092,-1129.3,0.00050958,120]
[331483691,1720438131130,-500.0,0.00050958,120]
[331483692,1720438131171,-500.0,0.00050958,120]
[331483693,1720438131211,-500.0,0.00050958,120]
[331483694,1720438131256,-500.0,0.00050958,120]
[331483695,1720438131295,-500.0,0.00050958,120]
[331483696,1720438131336,-500.0,0.00050958,120]
[331483697,1720438131376,-3645.11,0.00050958,120]
[331483698,1720438131417,-500.0,0.00050958,120]
[331483699,1720438131462,-537.46,0.00050958,120]
[331483700,1720438131506,-500.0,0.00050958,120]
[331483701,1720438131548,-779.78,0.00050958,120]
[331483702,1720438131590,-1029.1,0.00050958,120]
[331483703,1720438131631,-500.0,0.00050958,120]
[331483704,1720438131674,-2932.79,0.00050958,120]
[331483705,1720438131715,-724.0,0.00050958,120]
[331483706,1720438131757,-500.0,0.00050958,120]
[331483707,1720438131799,-500.0,0.00050958,120]
[331483708,1720438131840,-500.0,0.00050958,120]
[331483709,1720438131880,-745.19,0.00050958,120]
[331483710,1720438131920,-777.31,0.00050958,120]
[331483711,1720438131960,-2842.73,0.00050958,120]
[331483712,1720438131999,-731.02,0.00050958,120]
[331483713,1720438132040,-970.78,0.00050958,120]
[331483714,1720438132078,-3212.9,0.00050958,120]
[331483715,1720438132116,-500.0,0.00050958,120]
[331483716,1720438132155,-500.0,0.00050958,120]
[331483717,1720438132199,-500.0,0.00050958,120]
[331483718,1720438132237,-500.0,0.00050958,120]
[331483719,1720438132282,-500.0,0.00050958,120]
[331483720,1720438132323,-370.49687577,0.00050958,120]
[331483721,1720438132363,-866.32,0.00050958,120]
[331483722,1720438132402,-500.0,0.00050958,120]
[331483723,1720438132441,-2301.35,0.00050958,120]
[331483724,1720438132481,-656.72,0.00050958,120]
[331483725,1720438132522,-500.0,0.00050958,120]
[331483726,1720438132564,-1651.75,0.00050958,120]
[331483727,1720438132608,-2707.16,0.00050958,120]
[331483728,1720438132652,-1487.69,0.00050958,120]
[331483729,1720438132695,-500.0,0.00050958,120]
[331483730,1720438132737,-1102.07,0.00050958,120]
[331483731,1720438132778,-1851.41,0.00050958,120]
[331483732,1720438132818,-500.0,0.00050958,120]
[331483733,1720438132858,-980.85,0.00050958,120]
[331483734,1720438132895,-208.34828679,0.00050958,120]
[331483735,1720438132932,-500.0,0.00050958,120]
[331483736,1720438132972,-500.0,0.00050958,120]
[331483737,1720438133012,-4705.08,0.00050958,120]
[331483738,1720438133049,-1550.67,0.00050958,120]
[331483739,1720438133085,-500.0,0.00050958,120]
[331483740,1720438133121,-855.98,0.00050958,120]
[331483741,1720438133158,-500.0,0.00050958,120]
[331483742,1720438133197,-500.0,0.00050958,120]
[331483743,1720438133236,-500.0,0.00050958,120]
[331483744,1720438133283,-3524.54,0.00050958,120]
[331483745,1720438133326,-500.0,0.00050958,120]
[331483746,1720438133367,-500.0,0.00050958,120]
[331483747,1720438133406,-500.0,0.00050958,120]
[331483748,1720438133449,-3542.65,0.00050958,120]
[331483749,1720438133488,-500.0,0.00050958,120]
[331483750,1720438133529,-500.0,0.00050958,120]
[331483751,1720438133569,-1404.03,0.00050958,120]
[331483752,1720438133608,-520.47,0.00050958,120]
[331483753,1720438133648,-569.31,0.00050958,120]
[331483754,1720438133692,-500.0,0.00050958,120]
[331483755,1720438133732,-500.0,0.00050958,120]
[331483756,1720438133773,-500.0,0.00050958,120]
[331483757,1720438133815,-500.0,0.00050958,120]
[331483758,1720438133856,-1256.58,0.00050958,120]
[331483759,1720438133900,-500.0,0.00050958,120]
[331483760,1720438133946,-500.0,0.00050958,120]
[331483761,1720438133991,-552.45093759,0.00050958,120]
[331483762,1720438134034,-4775.84,0.00050958,120]
[331483763,1720438134080,-804.05,0.00050958,120]
[331483764,1720438134123,-500.0,0.00050958,120]
[331483765,1720438134170,-2135.26,0.00050958,120]
[331483766,1720438134217,-500.0,0.00050958,120]
[331483767,1720438134260,-536.3,0.00050958,120]
[331483768,1720438134305,-802.42,0.00050958,120]
[331483769,1720438134349,-500.0,0.00050958,120]
[331483770,1720438134391,-968.64,0.00050958,120]
[331483771,1720438134435,-500.0,0.00050958,120]
[331483772,1720438134480,-1082.19,0.00050958,120]
[331483773,1720438134525,-500.0,0.00050958,120]
[331483774,1720438134569,-500.0,0.00050958,120]
[331483775,1720438134613,-500.0,0.00050958,120]
[331483776,1720438134658,-1570.5,0.00050958,120]
[331483777,1720438134703,-504.63936551,0.00050958,120]
[331483778,1720438134748,-1935.41,0.00050958,120]
[331483779,1720438134793,-500.0,0.00050958,120]
[331483780,1720438135024,-500.0,0.00050958,120]
[331483781,1720438135069,-500.0,0.00050958,120]
[331483782,1720438135114,-1670.66,0.00050958,120]
[331483783,1720438135157,-5085.83,0.00050958,120]
[331483784,1720438135200,-500.0,0.00050958,120]
[331483785,1720438135242,-500.0,0.00050958,120]
[331483786,1720438135291,-500.0,0.00050958,120]
[331483787,1720438135332,-500.0,0.00050958,120]
[331483788,1720438135375,-500.0,0.00050958,120]
[331483789,1720438135418,-500.0,0.00050958,120]
[331483790,1720438135462,-500.0,0.00050958,120]
[331483791,1720438135504,-771.26,0.00050958,120]
[331483792,1720438135548,-500.0,0.00050958,120]
[331483793,1720438135591,-369.49850278,0.00050958,120]
[331483794,1720438135638,-500.0,0.00050958,120]
[331483795,1720438135685,-20855.15,0.00050958,120]
[331483796,1720438135732,-813.82,0.00050958,120]
[331483797,1720438135777,-500.0,0.00050958,120]
[331483798,1720438135825,-500.0,0.00050958,120]
[331483799,1720438135871,-2200.14,0.00050958,120]
[331483800,1720438135919,-3881.42,0.00050958,120]
[331483801,1720438135962,-1256.69,0.00050958,120]
[331483802,1720438136006,-500.0,0.00050958,120]
[331483803,1720438136051,-1326.11,0.00050958,120]
[331483804,1720438136093,-500.0,0.00050958,120]
[331483805,1720438136135,-1747.96,0.00050958,120]
[331483806,1720438136177,-344.91267227,0.00050958,120]
[331483807,1720438136217,-500.0,0.00050958,120]
[331483808,1720438136258,-500.0,0.00050958,120]
[331483809,1720438136299,-530.51,0.00050958,120]
[331483810,1720438136343,-10457.36,0.00050958,120]
[331483811,1720438136386,-500.0,0.00050958,120]
[331483812,1720438136430,-500.0,0.00050958,120]
[331483813,1720438136472,-3955.09,0.00050958,120]
[331483814,1720438136515,-500.0,0.00050958,120]
[331483815,1720438136557,-941.75,0.00050958,120]
[331483816,1720438136598,-500.0,0.00050958,120]
[331483817,1720438136639,-1163.07,0.00050958,120]
[331483818,1720438136682,-500.0,0.00050958,120]
[331483819,1720438136724,-500.0,0.00050958,120]
[331483820,1720438136765,-500.0,0.00050958,120]
[331483821,1720438136809,-500.0,0.00050958,120]
[331483822,1720438136850,-500.0,0.00050958,120]
[331483823,1720438136892,-915.13,0.00050958,120]
[331483824,1720438136933,-388.35029492,0.00050958,120]
[331483825,1720438136976,-4238.82,0.00050958,120]
[331483826,1720438137018,-532.42,0.00050958,120]
[331483827,1720438137061,-500.0,0.00050958,120]
[331483828,1720438137101,-3090.27,0.00050958,120]
[331483829,1720438137141,-500.0,0.00050958,120]
[331483830,1720438137184,-511.24,0.00050958,120]
[331483831,1720438137225,-5448.63,0.00050958,120]
[331483832,1720438137266,-2062.26,0.00050958,120]
[331483833,1720438137307,-500.0,0.00050958,120]
[331483834,1720438137349,-2547.29,0.00050958,120]
[331483835,1720438137392,-4594.83,0.00050958,120]
[331483836,1720438137432,-500.0,0.00050958,120]
[331483837,1720438137475,-500.0,0.00050958,120]
[331483838,1720438137519,-1773.39,0.00050958,120]
[331483839,1720438137559,-722.73,0.00050958,120]
[331483840,1720438137602,-847.59,0.00050958,120]
[331483841,1720438137645,-8365.78,0.00050958,120]
[331483842,1720438137688,-500.0,0.00050958,120]
[331483843,1720438137734,-500.0,0.00050958,120]
[331483844,1720438137778,-962.79,0.00050958,120]
[331483845,1720438137820,-1826.77,0.00050958,120]
[331483846,1720438137862,-500.0,0.00050958,120]
[331483847,1720438137900,-500.0,0.00050958,120]
[331483848,1720438137939,-1768.04,0.00050958,120]
[331483849,1720438137981,-500.0,0.00050958,120]
[331483850,1720438138023,-1447.56,0.00050958,120]
[331483851,1720438138062,-4590.57,0.00050958,120]
[331483852,1720438138101,-1801.6,0.00050958,120]
[331483853,1720438138140,-500.0,0.00050958,120]
[331483854,1720438138178,-500.0,0.00050958,120]
[331483855,1720438138218,-2861.76,0.00050958,120]
[331483856,1720438138259,-1122.87,0.00050958,120]
[331483857,1720438138299,-637.80412663,0.00050958,120]
[331483858,1720438138338,-500.0,0.00050958,120]
[331483859,1720438138377,-6551.73,0.00050958,120]
[331483860,1720438138415,-526.91,0.00050958,120]
[331483861,1720438138460,-659.22,0.00050958,120]
[331483862,1720438138503,-500.0,0.00050958,120]
[331483863,1720438138544,-314.77,0.00050958,120]
[331483864,1720438138587,-500.0,0.00050958,120]
[331483865,1720438138629,-500.0,0.00050958,120]
[331483866,1720438138673,-686.39,0.00050958,120]
[331483867,1720438138716,-1136.27,0.00050958,120]
[331483868,1720438138762,-3164.35,0.00050958,120]
[331483869,1720438138805,-505.54,0.00050958,120]
[331483870,1720438138850,-1162.49,0.00050958,120]
[331483871,1720438138894,-1906.95,0.00050958,120]
[331483872,1720438138938,-500.0,0.00050958,120]
[331483874,1720438138982,-1298.4,0.00050958,120]
[331483875,1720438139025,-1181.68,0.00050958,120]
[331483876,1720438139067,-500.0,0.00050958,120]
[331483877,1720438139109,-2349.1,0.00050958,120]
[331483878,1720438139153,-811.45,0.00050958,120]
[331483879,1720438139195,-500.0,0.00050958,120]
[331483880,1720438139237,-500.0,0.00050958,120]
[331483881,1720438139283,-2038.75,0.00050958,120]
[331483882,1720438139327,-759.35,0.00050958,120]
[331483883,1720438139371,-1664.25,0.00050958,120]
[331483884,1720438139417,-50000.0,0.00051,51]
[331483885,1720438139642,-153.10701037,0.00051202,60]
[331483886,1720438139683,-500.0,0.00051232,120]
[331483887,1720438139723,-500.0,0.00051232,120]
[331483888,1720438139764,-500.0,0.00051232,120]
[331483889,1720438139805,-633.31,0.00051232,120]
[331483890,1720438139844,-500.0,0.00051232,120]
[331483891,1720438139884,-500.0,0.00051232,120]
[331483892,1720438139925,-827.79,0.00051232,120]
[331483893,1720438139966,-1270.71,0.00051232,120]
[331483894,1720438140008,-2024.69,0.00051232,120]
[331483895,1720438140051,-500.0,0.00051232,120]
[331483896,1720438140095,-1741.22,0.00051232,120]
[331483897,1720438140138,-1241.64,0.00051232,120]
[331483898,1720438140182,-1264.41,0.00051232,120]
[331483899,1720438140228,-500.0,0.00051232,120]
[331483900,1720438140274,-812.78,0.00051232,120]
[331483901,1720438140319,-500.0,0.00051232,120]
[331483902,1720438140364,-597.99,0.00051232,120]
[331483903,1720438140407,-500.0,0.00051232,120]
[331483904,1720438140453,-468.59891204,0.00051232,120]
[331483905,1720438140500,-500.0,0.00051232,120]
[331483906,1720438140550,-592.5,0.00051232,120]
[331483907,1720438140598,-500.0,0.00051232,120]
[331483908,1720438140645,-500.0,0.00051232,120]
[331483909,1720438140690,-500.0,0.00051232,120]
[331483910,1720438140735,-500.0,0.00051232,120]
[331483911,1720438140782,-500.0,0.00051232,120]
[331483912,1720438140826,-1087.49,0.00051232,120]
[331483913,1720438140868,-602.54,0.00051232,120]
[331483914,1720438140911,-1694.76,0.00051232,120]
[331483915,1720438140954,-500.0,0.00051232,120]
[331483916,1720438140996,-978.12,0.00051232,120]
[331483917,1720438141038,-500.0,0.00051232,120]
[331483918,1720438141081,-1886.47,0.00051232,120]
[331483919,1720438141122,-1514.14,0.00051232,120]
[331483920,1720438141164,-500.0,0.00051232,120]
[331483921,1720438141211,-500.0,0.00051232,120]
[331483922,1720438141257,-500.0,0.00051232,120]
[331483923,1720438141300,-500.0,0.00051232,120]
[331483924,1720438141343,-612.16,0.00051232,120]
[331483925,1720438141385,-500.0,0.00051232,120]
[331483926,1720438141428,-859.41,0.00051232,120]
[331483927,1720438141474,-715.44,0.00051232,120]
[331483928,1720438141516,-500.0,0.00051232,120]
[331483929,1720438141559,-1041.8,0.00051232,120]
[331483930,1720438141603,-500.0,0.00051232,120]
[331483931,1720438141646,-500.0,0.00051232,120]
[331483932,1720438141687,-1826.92,0.00051232,120]
[331483933,1720438141731,-611.62,0.00051232,120]
[331483934,1720438141773,-500.0,0.00051232,120]
[331483935,1720438141818,-500.0,0.00051232,120]
[331483936,1720438141861,-500.0,0.00051232,120]
[331483937,1720438141903,-500.0,0.00051232,120]
[331483938,1720438141949,-2300.26,0.00051232,120]
[331483939,1720438141994,-500.0,0.00051232,120]
[331483940,1720438142036,-500.0,0.00051232,120]
[331483941,1720438142080,-500.0,0.00051232,120]
[331483942,1720438142124,-500.0,0.00051232,120]
[331483943,1720438142168,-2614.96,0.00051232,120]
[331483944,1720438142213,-500.0,0.00051232,120]
[331483945,1720438142258,-500.0,0.00051232,120]
[331483946,1720438142301,-2148.51,0.00051232,120]
[331483947,1720438142346,-500.0,0.00051232,120]
[331483948,1720438142390,-500.0,0.00051232,120]
[331483949,1720438142432,-633.82,0.00051232,120]
[331483950,1720438142477,-1837.33,0.00051232,120]
[331483951,1720438142521,-500.0,0.00051232,120]
[331483952,1720438142567,-500.0,0.00051232,120]
[331483953,1720438142614,-500.0,0.00051232,120]
[331483954,1720438142661,-522.56,0.00051232,120]
[331483955,1720438142707,-500.0,0.00051232,120]
[331483956,1720438142752,-500.0,0.00051232,120]
[331483957,1720438142794,-500.0,0.00051232,120]
[331483958,1720438142839,-1448.04,0.00051232,120]
[331483959,1720438142882,-2564.45,0.00051232,120]
[331483960,1720438142926,-852.59,0.00051232,120]
[331483961,1720438142968,-2132.97,0.00051232,120]
[331483962,1720438143014,-500.0,0.00051232,120]
[331483963,1720438143060,-500.0,0.00051232,120]
[331483964,1720438143104,-500.0,0.00051232,120]
[331483965,1720438143147,-679.05,0.00051232,120]
[331483966,1720438143189,-500.0,0.00051232,120]
[331483967,1720438143231,-2109.64,0.00051232,120]
[331483968,1720438143274,-600.73,0.00051232,120]
[331483969,1720438143318,-578.68,0.00051232,120]
[331483970,1720438143363,-1115.3,0.00051232,120]
[331483971,1720438143405,-500.0,0.00051232,120]
[331483972,1720438143450,-1725.52,0.00051232,120]
[331483973,1720438143494,-500.0,0.00051232,120]
[331483974,1720438143538,-1003.07,0.00051232,120]
[331483975,1720438143583,-723.07,0.00051232,120]
[331483976,1720438143627,-500.0,0.00051232,120]
[331483977,1720438143671,-981.91,0.00051232,120]
[331483978,1720438143715,-500.0,0.00051232,120]
[331483979,1720438143762,-500.0,0.00051232,120]
[331483980,1720438143807,-622.24,0.00051232,120]
[331483981,1720438143855,-368.637102,0.00051232,120]
[331483982,1720438143903,-500.0,0.00051232,120]
[331483983,1720438143951,-518.23561999,0.00051232,120]
[331483984,1720438144000,-745.91,0.00051232,120]
[331483985,1720438144048,-500.0,0.00051232,120]
[331483986,1720438144096,-594.32,0.00051232,120]
[331483987,1720438144143,-870.94,0.00051232,120]
[331483988,1720438144189,-623.11,0.00051232,120]
[331483989,1720438144420,-500.0,0.00051232,120]
[331483990,1720438144467,-1347.4,0.00051232,120]
[331483991,1720438144514,-500.0,0.00051232,120]
[331483992,1720438144561,-652.48,0.00051232,120]
[331483993,1720438144606,-560.3,0.00051232,120]
[331483994,1720438144652,-978.58,0.00051232,120]
[331483995,1720438144698,-1040.65,0.00051232,120]
[331483996,1720438144744,-500.0,0.00051232,120]
[331483997,1720438144791,-2087.12,0.00051232,120]
[331483998,1720438144839,-500.0,0.00051232,120]
[331483999,1720438144887,-500.0,0.00051232,120]
[331484000,1720438144932,-555.79,0.00051232,120]
[331484001,1720438144982,-1043.43,0.00051232,120]
[331484002,1720438145033,-1696.47,0.00051232,120]
[331484003,1720438145078,-500.0,0.00051232,120]
[331484004,1720438145122,-500.0,0.00051232,120]
[331484005,1720438145164,-500.0,0.00051232,120]
[331484006,1720438145210,-500.0,0.00051232,120]
[331484007,1720438145256,-500.0,0.00051232,120]
[331484008,1720438145301,-1292.22,0.00051232,120]
[331484009,1720438145344,-500.0,0.00051232,120]
[331484010,1720438145388,-557.25,0.00051232,120]
[331484011,1720438145433,-500.0,0.00051232,120]
[331484012,1720438145477,-1700.15,0.00051232,120]
[331484013,1720438145523,-653.46,0.00051232,120]
[331484014,1720438145566,-500.0,0.00051232,120]
[331484015,1720438145610,-1020.7,0.00051232,120]
[331484016,1720438145655,-731.92,0.00051232,120]
[331484017,1720438145701,-515.36,0.00051232,120]
[331484018,1720438145746,-500.0,0.00051232,120]
[331484019,1720438145792,-500.0,0.00051232,120]
[331484020,1720438145836,-1070.52,0.00051232,120]
[331484021,1720438145881,-783.21,0.00051232,120]
[331484022,1720438145929,-500.0,0.00051232,120]
[331484023,1720438145974,-500.0,0.00051232,120]
[331484024,1720438146022,-1354.07,0.00051232,120]
[331484025,1720438146070,-813.62,0.00051232,120]
[331484026,1720438146120,-1435.39,0.00051232,120]
[331484027,1720438146168,-564.74,0.00051232,120]
[331484028,1720438146223,-500.0,0.00051232,120]
[331484029,1720438146271,-500.0,0.00051232,120]
[331484030,1720438146314,-500.0,0.00051232,120]
[331484031,1720438146363,-500.0,0.00051232,120]
[331484032,1720438146409,-763.67,0.00051232,120]
[331484033,1720438146457,-2022.23,0.00051232,120]
[331484034,1720438146503,-500.0,0.00051232,120]
[331484035,1720438146549,-500.0,0.00051232,120]
[331484036,1720438146593,-500.0,0.00051232,120]
[331484037,1720438146638,-500.0,0.00051232,120]
[331484038,1720438146683,-500.0,0.00051232,120]
[331484039,1720438146727,-524.75,0.00051232,120]
[331484040,1720438146773,-2292.61,0.00051232,120]
[331484041,1720438146820,-1256.24,0.00051232,120]
[331484042,1720438146863,-1240.02,0.00051232,120]
[331484043,1720438146909,-500.0,0.00051232,120]
[331484044,1720438146957,-2191.34,0.00051232,120]
[331484045,1720438147001,-500.0,0.00051232,120]
[331484046,1720438147045,-526.64,0.00051232,120]
[331484047,1720438147088,-500.0,0.00051232,120]
[331484048,1720438147133,-518.09,0.00051232,120]
[331484049,1720438147180,-500.0,0.00051232,120]
[331484050,1720438147224,-500.0,0.00051232,120]
[331484051,1720438147268,-500.0,0.00051232,120]
[331484052,1720438147313,-500.0,0.00051232,120]
[331484053,1720438147359,-500.0,0.00051232,120]